fUST/lending_fUST_20250928
["ID","MTS","AMOUNT","RATE_DAILY","PERIOD"]
[388047678,1758991842665,-151.0,0.00032994,7]
[388047679,1758991842674,-151.0,0.00032994,7]
[388047680,1758991842683,-151.0,0.00032994,7]
[388047681,1758991842692,-151.0,0.00032994,7]
[388047682,1758991842701,-151.0,0.00032994,7]
[388047683,1758991842711,-151.0,0.00032994,7]
[388047684,1758991842720,-235.337051,0.00032994,7]
[388047685,1758991842729,-151.0,0.00032994,7]
[388047686,1758991842738,-151.0,0.00032994,7]
[388047687,1758991842748,-273.29234,0.00032994,7]
[388047688,1758991842757,-176.771865,0.00032994,7]
[388047689,1758991842767,-176.771865,0.00032994,7]
[388047690,1758991842777,-176.771865,0.00032994,7]
[388047691,1758991842787,-176.771865,0.00032994,7]
[388047692,1758991842796,-151.0,0.00032994,7]
[388047693,1758991842806,-151.0,0.00032994,7]
[388047694,1758991842815,-151.0,0.00032994,7]
[388047695,1758991842825,-151.0,0.00032994,7]
[388047696,1758991842834,-151.0,0.00032994,7]
[388047697,1758991842844,-151.0,0.00032994,7]
[388047698,1758991842854,-174.485199,0.00032994,7]
[388047699,1758991842863,-151.0,0.00032994,7]
[388047700,1758991842873,-154.665594,0.00032994,7]
[388047701,1758991842882,-151.103867,0.00032994,7]
[388047702,1758991842891,-151.0,0.00032994,7]
[388047703,1758991842901,-151.0,0.00032994,7]
[388047704,1758991842910,-363.55866,0.00032994,7]
[388047705,1758991842920,-363.55866,0.00032994,7]
[388047706,1758991842930,-151.0,0.00032994,7]
[388047707,1758991842939,-363.55866,0.00032994,7]
[388047708,1758991842949,-151.0,0.00032994,7]
[388047709,1758991842959,-363.55866,0.00032994,7]
[388047710,1758991842968,-151.0,0.00032994,7]
[388047711,1758991842978,-151.0,0.00032994,7]
[388047712,1758991842987,-218.919878,0.00032994,7]
[388047713,1758991842996,-334.60601,0.00032994,7]
[388047714,1758991843006,-334.60601,0.00032994,7]
[388047715,1758991843015,-334.60601,0.00032994,7]
[388047716,1758991843026,-670.083183,0.00032994,7]
[388047718,1758991843035,-334.60601,0.00032994,7]
[388047719,1758991843045,-670.083183,0.00032994,7]
[388047721,1758991843054,-670.083183,0.00032994,7]
[388047723,1758991843064,-670.083183,0.00032994,7]
[388047725,1758991843073,-151.0,0.00032994,7]
[388047726,1758991843083,-9933.80529792,0.00032994,2]
[388047728,1758991843092,-324.0,0.00032998,2]
[388047730,1758991843101,-160.0,0.00032998,2]
[388047731,1758991843111,-689.15004016,0.00032999,2]
[388047732,1758991843120,-1240.47007229,0.00032999,2]
[388047733,1758991843130,-2205.28012852,0.00032999,2]
[388047734,1758991843140,-3445.75020081,0.00032999,2]
[388047735,1758991843149,-544.3730887,0.00032999,2]
[388047736,1758991843159,-979.87155967,0.00032999,2]
[388047737,1758991843169,-1741.99388385,0.00032999,2]
[388047738,1758991843179,-2721.86544352,0.00032999,2]
[388047739,1758991843188,-4961.88028917,0.00032999,2]
[388047740,1758991843197,-486.24162362,0.00032999,2]
[388047741,1758991843207,-875.23492252,0.00032999,2]
[388047742,1758991843216,-6746.9167232,0.00032999,2]
[388047743,1758991843226,-3915.56675243,0.00032999,2]
[388047744,1758991843235,-338.68228573,0.00032999,2]
[388047745,1758991843245,-160.0,0.00033,2]
[388047746,1758991843255,-160.0,0.00033,2]
[388047747,1758991843264,-359.28854187,0.00033,120]
[388047748,1758991843275,-172.22016768,0.00033,120]
[388047749,1758991843284,-500.0,0.00033005,5]
[388047750,1758991843293,-235.63716348,0.0003301,5]
[388047751,1758991843303,-1000.0,0.0003301,5]
[388047752,1758991843312,-18751.8216694,0.00033026,2]
[388047753,1758991843322,-1140.6840765,0.00033026,2]
[388047754,1758991843331,-448.95101673,0.00033036,5]
[388047755,1758991843340,-500.0,0.00033036,5]
[388047756,1758991843350,-500.0,0.00033036,5]
[388047757,1758991843359,-500.0,0.00033036,5]
[388047758,1758991843369,-508.94624874,0.00033036,5]
[388047759,1758991843378,-500.0,0.00033036,5]
[388047760,1758991843388,-500.0,0.00033036,5]
[388047761,1758991843396,-500.0,0.00033036,5]
[388047762,1758991843406,-535.42504572,0.00033036,5]
[388047763,1758991843415,-500.0,0.00033036,5]
[388047764,1758991843425,-500.0,0.00033036,5]
[388047765,1758991843571,-500.0,0.00033036,5]
[388047766,1758991843582,-500.0,0.00033036,5]
[388047767,1758991843592,-174.92751106,0.00033036,5]
[388047768,1758991843602,-500.0,0.00033036,5]
[388047769,1758991843612,-500.0,0.00033036,5]
[388047770,1758991843623,-509.64584733,0.00033036,5]
[388047771,1758991843633,-430.57133999,0.00033036,5]
[388047772,1758991843644,-500.0,0.00033036,5]
[388047773,1758991843654,-500.0,0.00033036,5]
[388047774,1758991843664,-500.0,0.00033036,5]
[388047775,1758991843674,-626.67299368,0.00033036,5]
[388047776,1758991843684,-500.0,0.00033036,5]
[388047777,1758991843693,-500.0,0.00033036,5]
[388047778,1758991843703,-500.0,0.00033036,5]
[388047779,1758991843713,-412.02670785,0.00033036,5]
[388047780,1758991843722,-324.0,0.00033044,2]
[388047781,1758991843732,-203.0,0.00033064,7]
[388047782,1758991843741,-176.98420056,0.00033073,2]
[388047783,1758991843752,-153.0,0.00033097,2]
[388047784,1758991843762,-153.0,0.00033097,2]
[388047786,1758991843771,-153.0,0.00033097,2]
[388047787,1758991843780,-153.0,0.00033097,2]
[388047789,1758991843790,-1000.0,0.00033098,5]
[388047791,1758991843799,-1000.0,0.00033098,5]
[388047794,1758991843808,-153.0,0.00033099,2]
[388047796,1758991843817,-153.0,0.00033099,2]
[388047798,1758991843827,-153.0,0.00033099,2]
[388047800,1758991843835,-153.0,0.00033099,2]
[388047802,1758991843845,-153.0,0.00033099,2]
[388047804,1758991843854,-153.0,0.00033099,2]
[388047806,1758991843863,-153.0,0.00033099,2]
[388047808,1758991843872,-153.0,0.00033099,2]
[388047810,1758991843882,-153.0,0.00033099,2]
[388047812,1758991843891,-153.0,0.00033099,2]
[388047813,1758991843900,-153.0,0.00033099,2]
[388047815,1758991843911,-1518.57899064,0.000331,60]
[388047816,1758991843922,-18751.8216694,0.00033127,2]
[388047817,1758991843931,-1140.6840765,0.00033127,2]
[388047818,1758991843940,-1140.6840765,0.00033127,2]
[388047819,1758991843951,-202.0,0.00033128,2]
[388047820,1758991843961,-763.173585,0.00033137,7]
[388047821,1758991843972,-186.974653,0.00033137,7]
[388047822,1758991843984,-763.173585,0.00033137,7]
[388047823,1758991843994,-186.974653,0.00033137,7]
[388047824,1758991844003,-763.173585,0.00033137,7]
[388047825,1758991844014,-186.974653,0.00033137,7]
[388047826,1758991844026,-763.173585,0.00033137,7]
[388047827,1758991844036,-186.974653,0.00033137,7]
[388047828,1758991844048,-151.0,0.00033137,7]
[388047829,1758991844058,-151.0,0.00033137,7]
[388047830,1758991844066,-151.0,0.00033137,7]
[388047831,1758991844075,-151.0,0.00033137,7]
[388047832,1758991844084,-151.0,0.00033137,7]
[388047833,1758991844095,-151.0,0.00033137,7]
[388047834,1758991844104,-151.0,0.00033137,7]
[388047835,1758991844115,-151.0,0.00033137,7]
[388047836,1758991844125,-151.0,0.00033137,7]
[388047837,1758991844135,-151.0,0.00033137,7]
[388047838,1758991844144,-151.0,0.00033137,7]
[388047839,1758991844154,-987.64057,0.00033137,7]
[388047840,1758991844163,-987.64057,0.00033137,7]
[388047841,1758991844172,-987.64057,0.00033137,7]
[388047842,1758991844182,-987.64057,0.00033137,7]
[388047843,1758991844191,-151.0,0.00033137,7]
[388047844,1758991844201,-151.0,0.00033137,7]
[388047845,1758991844210,-151.0,0.00033137,7]
[388047846,1758991844218,-151.0,0.00033137,7]
[388047847,1758991844227,-151.0,0.00033137,7]
[388047848,1758991844235,-151.0,0.00033137,7]
[388047849,1758991844244,-151.0,0.00033137,7]
[388047850,1758991844252,-151.0,0.00033137,7]
[388047851,1758991844261,-2856.758911,0.00033137,7]
[388047852,1758991844270,-349.994915,0.00033137,7]
[388047853,1758991844279,-2856.758911,0.00033137,7]
[388047854,1758991844288,-349.994915,0.00033137,7]
[388047855,1758991844297,-2856.758911,0.00033137,7]
[388047856,1758991844307,-2856.758911,0.00033137,7]
[388047857,1758991844316,-349.994915,0.00033137,7]
[388047858,1758991844327,-349.994915,0.00033137,7]
[388047859,1758991844336,-151.0,0.00033137,7]
[388047860,1758991844346,-151.0,0.00033137,7]
[388047861,1758991844355,-151.0,0.00033137,7]
[388047862,1758991844365,-151.0,0.00033137,7]
[388047863,1758991844374,-583.300728,0.00033137,7]
[388047864,1758991844383,-583.300728,0.00033137,7]
[388047865,1758991844392,-583.300728,0.00033137,7]
[388047866,1758991844402,-583.300728,0.00033137,7]
[388047867,1758991844412,-151.0,0.00033137,7]
[388047868,1758991844422,-151.0,0.00033137,7]
[388047869,1758991844432,-151.0,0.00033137,7]
[388047870,1758991844441,-1944.294821,0.00033137,7]
[388047871,1758991844450,-151.0,0.00033137,7]
[388047872,1758991844460,-151.0,0.00033137,7]
[388047873,1758991844469,-1944.294821,0.00033137,7]
[388047874,1758991844479,-151.0,0.00033137,7]
[388047876,1758991844488,-1944.294821,0.00033137,7]
[388047877,1758991844497,-1944.294821,0.00033137,7]
[388047878,1758991844508,-151.0,0.00033137,7]
[388047879,1758991844518,-151.0,0.00033137,7]
[388047880,1758991844528,-151.0,0.00033137,7]
[388047881,1758991844537,-151.0,0.00033137,7]
[388047882,1758991844547,-151.0,0.00033137,7]
[388047883,1758991844557,-151.0,0.00033137,7]
[388047884,1758991844567,-151.0,0.00033137,7]
[388047885,1758991844576,-151.0,0.00033137,7]
[388047886,1758991844585,-151.0,0.00033137,7]
[388047887,1758991844595,-151.0,0.00033137,7]
[388047888,1758991844604,-151.0,0.00033137,7]
[388047889,1758991844613,-169.830497,0.00033137,7]
[388047890,1758991844622,-169.830497,0.00033137,7]
[388047891,1758991844631,-151.0,0.00033137,7]
[388047892,1758991844641,-169.830497,0.00033137,7]
[388047893,1758991844650,-151.0,0.00033137,7]
[388047894,1758991844659,-151.0,0.00033137,7]
[388047895,1758991844668,-169.830497,0.00033137,7]
[388047896,1758991844678,-151.0,0.00033137,7]
[388047897,1758991844687,-151.0,0.00033137,7]
[388047898,1758991844695,-151.0,0.00033137,7]
[388047899,1758991844704,-151.0,0.00033137,7]
[388047900,1758991844717,-151.0,0.00033137,7]
[388047901,1758991844727,-448.864681,0.00033137,7]
[388047902,1758991844736,-448.864681,0.00033137,7]
[388047903,1758991844745,-448.864681,0.00033137,7]
[388047904,1758991844754,-151.0,0.00033137,7]
[388047905,1758991844763,-448.864681,0.00033137,7]
[388047906,1758991844773,-151.000001,0.00033137,7]
[388047907,1758991844784,-2281.368153,0.00033137,2]
[388047908,1758991844794,-56619.8566235,0.00033147,2]
[388047909,1758991844803,-170.370056,0.00033147,7]
[388047910,1758991844813,-151.0,0.00033147,7]
[388047911,1758991844822,-181.838916,0.00033147,7]
[388047912,1758991844832,-151.0,0.00033147,7]
[388047913,1758991844841,-151.0,0.00033147,7]
[388047914,1758991844850,-151.0,0.00033147,7]
[388047915,1758991844860,-151.0,0.00033147,7]
[388047916,1758991844869,-151.0,0.00033147,7]
[388047917,1758991844879,-151.0,0.00033147,7]
[388047918,1758991844891,-151.0,0.00033147,7]
[388047919,1758991844901,-151.0,0.00033147,7]
[388047920,1758991844910,-151.0,0.00033147,7]
[388047921,1758991844919,-151.0,0.00033147,7]
[388047922,1758991844929,-151.0,0.00033147,7]
[388047923,1758991844939,-151.0,0.00033147,7]
[388047924,1758991844948,-151.0,0.00033147,7]
[388047925,1758991844958,-151.0,0.00033147,7]
[388047926,1758991844967,-151.0,0.00033147,7]
[388047927,1758991844977,-151.0,0.00033147,7]
[388047928,1758991844986,-151.0,0.00033147,7]
[388047929,1758991844996,-151.0,0.00033147,7]
[388047930,1758991845007,-151.0,0.00033147,7]
[388047931,1758991845017,-231.954709,0.00033147,7]
[388047932,1758991845032,-231.954709,0.00033147,7]
[388047933,1758991845042,-231.954709,0.00033147,7]
[388047934,1758991845051,-151.0,0.00033147,7]
[388047935,1758991845062,-231.954709,0.00033147,7]
[388047936,1758991845073,-193.464701,0.00033147,7]
[388047937,1758991845083,-151.0,0.00033147,7]
[388047938,1758991845092,-151.0,0.00033147,7]
[388047939,1758991845104,-151.0,0.00033147,7]
[388047940,1758991845113,-555.098845,0.00033147,7]
[388047941,1758991845122,-555.098845,0.00033147,7]
[388047942,1758991845132,-555.098845,0.00033147,7]
[388047943,1758991845142,-151.0,0.00033147,7]
[388047944,1758991845151,-555.098845,0.00033147,7]
[388047945,1758991845162,-151.0,0.00033147,7]
[388047946,1758991845171,-151.0,0.00033147,7]
[388047947,1758991845181,-151.0,0.00033147,7]
[388047948,1758991845191,-151.0,0.00033147,7]
[388047949,1758991845200,-151.0,0.00033147,7]
[388047950,1758991845209,-151.0,0.00033147,7]
[388047951,1758991845218,-151.0,0.00033147,7]
[388047952,1758991845228,-176.771865,0.00033147,7]
[388047953,1758991845236,-176.771865,0.00033147,7]
[388047954,1758991845246,-176.771865,0.00033147,7]
[388047955,1758991845255,-176.771865,0.00033147,7]
[388047956,1758991845265,-151.0,0.00033147,7]
[388047957,1758991845274,-151.0,0.00033147,7]
[388047958,1758991845284,-151.0,0.00033147,7]
[388047959,1758991845293,-151.0,0.00033147,7]
[388047960,1758991845304,-151.0,0.00033147,7]
[388047961,1758991845314,-151.0,0.00033147,7]
[388047962,1758991845325,-263.2044,0.00033147,7]
[388047963,1758991845335,-151.0,0.00033147,7]
[388047964,1758991845344,-151.0,0.00033147,7]
[388047965,1758991845354,-363.55866,0.00033147,7]
[388047966,1758991845363,-363.55866,0.00033147,7]
[388047967,1758991845372,-151.0,0.00033147,7]
[388047968,1758991845382,-363.55866,0.00033147,7]
[388047969,1758991845391,-151.0,0.00033147,7]
[388047970,1758991845401,-363.55866,0.00033147,7]
[388047971,1758991845411,-151.0,0.00033147,7]
[388047972,1758991845421,-151.0,0.00033147,7]
[388047973,1758991845431,-334.60601,0.00033147,7]
[388047974,1758991845440,-334.60601,0.00033147,7]
[388047975,1758991845449,-334.60601,0.00033147,7]
[388047976,1758991845459,-670.083183,0.00033147,7]
[388047977,1758991845468,-334.60601,0.00033147,7]
[388047978,1758991845477,-670.083183,0.00033147,7]
[388047979,1758991845486,-670.083183,0.00033147,7]
[388047980,1758991845495,-670.083183,0.00033147,7]
[388047981,1758991845504,-188.518753,0.00033147,7]
[388047982,1758991845513,-1140.6840765,0.00033153,2]
[388047983,1758991845523,-1140.6840765,0.00033163,2]
[388047984,1758991845532,-151.0,0.00033163,7]
[388047985,1758991845540,-151.0,0.00033163,7]
[388047986,1758991845550,-151.0,0.00033163,7]
[388047987,1758991845670,-151.0,0.00033163,7]
[388047988,1758991845692,-151.0,0.00033163,7]
[388047989,1758991845701,-151.0,0.00033163,7]
[388047990,1758991845711,-151.0,0.00033163,7]
[388047991,1758991845720,-198.899128,0.00033163,7]
[388047992,1758991845729,-2856.758911,0.00033163,7]
[388047993,1758991845739,-349.994915,0.00033163,7]
[388047994,1758991845749,-2856.758911,0.00033163,7]
[388047995,1758991845758,-349.994915,0.00033163,7]
[388047996,1758991845768,-2856.758911,0.00033163,7]
[388047997,1758991845777,-2856.758911,0.00033163,7]
[388047998,1758991845787,-349.994915,0.00033163,7]
[388047999,1758991845795,-349.994915,0.00033163,7]
[388048000,1758991845804,-151.0,0.00033163,7]
[388048001,1758991845814,-151.0,0.00033163,7]
[388048002,1758991845823,-151.0,0.00033163,7]
[388048003,1758991845832,-151.0,0.00033163,7]
[388048004,1758991845841,-583.300728,0.00033163,7]
[388048005,1758991845850,-583.300728,0.00033163,7]
[388048006,1758991845859,-583.300728,0.00033163,7]
[388048007,1758991845868,-583.300728,0.00033163,7]
[388048008,1758991845878,-151.0,0.00033163,7]
[388048009,1758991845887,-151.0,0.00033163,7]
[388048010,1758991845896,-151.0,0.00033163,7]
[388048011,1758991845905,-1944.294821,0.00033163,7]
[388048012,1758991845914,-151.0,0.00033163,7]
[388048013,1758991845923,-151.0,0.00033163,7]
[388048014,1758991845933,-1944.294821,0.00033163,7]
[388048015,1758991845942,-174.909842,0.00033163,7]
[388048016,1758991845953,-1944.294821,0.00033163,7]
[388048017,1758991845962,-1944.294821,0.00033163,7]
[388048018,1758991845971,-151.0,0.00033163,7]
[388048019,1758991845980,-151.0,0.00033163,7]
[388048020,1758991845989,-151.0,0.00033163,7]
[388048021,1758991845999,-151.0,0.00033163,7]
[388048022,1758991846008,-157.044097,0.00033163,7]
[388048023,1758991846018,-151.0,0.00033163,7]
[388048024,1758991846029,-151.0,0.00033163,7]
[388048026,1758991846038,-151.0,0.00033163,7]
[388048027,1758991846047,-151.0,0.00033163,7]
[388048028,1758991846056,-151.0,0.00033163,7]
[388048029,1758991846065,-151.0,0.00033163,7]
[388048030,1758991846075,-169.830497,0.00033163,7]
[388048031,1758991846085,-169.830497,0.00033163,7]
[388048032,1758991846094,-169.830497,0.00033163,7]
[388048033,1758991846103,-151.0,0.00033163,7]
[388048034,1758991846113,-151.0,0.00033163,7]
[388048035,1758991846123,-169.830497,0.00033163,7]
[388048036,1758991846132,-151.0,0.00033163,7]
[388048037,1758991846141,-151.0,0.00033163,7]
[388048038,1758991846150,-151.0,0.00033163,7]
[388048039,1758991846159,-151.0,0.00033163,7]
[388048040,1758991846168,-448.864681,0.00033163,7]
[388048041,1758991846178,-448.864681,0.00033163,7]
[388048042,1758991846187,-448.864681,0.00033163,7]
[388048043,1758991846196,-151.0,0.00033163,7]
[388048044,1758991846205,-448.864681,0.00033163,7]
[388048045,1758991846215,-844.45895666,0.00033173,5]
[388048046,1758991846224,-3377.83582663,0.00033173,5]
[388048047,1758991846232,-2167.92757327,0.00033173,5]
[388048048,1758991846241,-151.0,0.00033173,7]
[388048049,1758991846250,-209.470903,0.00033173,7]
[388048050,1758991846259,-209.470903,0.00033173,7]
[388048052,1758991846268,-209.470903,0.00033173,7]
[388048053,1758991846279,-209.470903,0.00033173,7]
[388048054,1758991846288,-151.0,0.00033173,7]
[388048055,1758991846297,-151.0,0.00033173,7]
[388048056,1758991846306,-151.0,0.00033173,7]
[388048057,1758991846315,-151.0,0.00033173,7]
[388048058,1758991846325,-271.792672,0.00033173,7]
[388048059,1758991846334,-151.0,0.00033173,7]
[388048060,1758991846344,-151.0,0.00033173,7]
[388048061,1758991846353,-502.92519722,0.00033176,12]
[388048062,1758991846362,-1000.0,0.00033178,5]
[388048063,1758991846372,-152.31519665,0.00033184,5]
[388048064,1758991846381,-151.31135269,0.00033184,5]
[388048065,1758991846390,-281.82430058,0.00033184,5]
[388048066,1758991846399,-151.0,0.00033184,5]
[388048067,1758991846408,-152.82333325,0.00033184,5]
[388048068,1758991846418,-151.0,0.00033184,5]
[388048069,1758991846427,-151.15484948,0.00033184,5]
[388048070,1758991846436,-151.0,0.00033184,7]
[388048071,1758991846445,-151.0,0.00033184,7]
[388048072,1758991846454,-151.0,0.00033184,7]
[388048073,1758991846463,-151.0,0.00033184,7]
[388048074,1758991846473,-151.0,0.00033184,7]
[388048075,1758991846482,-151.0,0.00033184,7]
[388048076,1758991846491,-151.0,0.00033184,7]
[388048077,1758991846499,-151.0,0.00033184,7]
[388048078,1758991846508,-151.0,0.00033184,7]
[388048079,1758991846517,-151.0,0.00033184,7]
[388048080,1758991846527,-170.781776,0.00033184,7]
[388048081,1758991846536,-151.0,0.00033184,5]
[388048082,1758991846545,-151.0,0.00033184,5]
[388048083,1758991846554,-500.0,0.00033184,5]
[388048084,1758991846563,-151.0,0.00033184,5]
[388048085,1758991846573,-198.74112318,0.00033184,5]
[388048086,1758991846582,-500.0,0.00033184,5]
[388048087,1758991846591,-1011.0,0.00033184,5]
[388048088,1758991846600,-158.77673419,0.00033184,5]
[388048089,1758991846610,-151.0,0.00033184,5]
[388048090,1758991846619,-151.0,0.00033184,5]
[388048091,1758991846628,-233.76631357,0.00033187,7]
[388048092,1758991846638,-151.00000001,0.00033187,7]
[388048093,1758991846647,-160.0,0.00033189,2]
[388048094,1758991846656,-160.0,0.0003319,7]
[388048095,1758991846665,-164.0,0.00033192,7]
[388048096,1758991846675,-164.0,0.00033192,7]
[388048097,1758991846684,-164.0,0.00033192,7]
[388048098,1758991846693,-164.0,0.00033192,7]
[388048099,1758991846702,-164.0,0.00033192,7]
[388048100,1758991846711,-166.712051,0.00033192,7]
[388048101,1758991846720,-156.0,0.00033192,7]
[388048102,1758991846729,-156.0,0.00033192,7]
[388048103,1758991846738,-156.0,0.00033192,7]
[388048104,1758991846747,-156.0,0.00033192,7]
[388048105,1758991846756,-155.53405102,0.00033192,7]
[388048106,1758991846766,-265.0,0.00033199,30]
[388048107,1758991846776,-2000.0,0.00033199,30]
[388048109,1758991846785,-752.0,0.00033199,30]
[388048110,1758991846794,-653.0,0.000332,2]
[388048111,1758991846803,-1140.6840765,0.00033285,2]
[388048112,1758991846813,-548.0,0.00033295,2]
[388048113,1758991846823,-359.28854187,0.000333,120]
[388048114,1758991846832,-763.173585,0.000333,7]
[388048115,1758991846842,-186.974653,0.000333,7]
[388048116,1758991846851,-763.173585,0.000333,7]
[388048117,1758991846860,-186.974653,0.000333,7]
[388048118,1758991846870,-763.173585,0.000333,7]
[388048119,1758991846879,-186.974653,0.000333,7]
[388048120,1758991846888,-763.173585,0.000333,7]
[388048121,1758991846898,-186.974653,0.000333,7]
[388048122,1758991846907,-151.0,0.000333,7]
[388048123,1758991846916,-151.0,0.000333,7]
[388048124,1758991846925,-151.0,0.000333,7]
[388048125,1758991846935,-151.0,0.000333,7]
[388048126,1758991846944,-151.0,0.000333,7]
[388048127,1758991846953,-151.0,0.000333,7]
[388048128,1758991846963,-151.0,0.000333,7]
[388048129,1758991846972,-151.0,0.000333,7]
[388048130,1758991846982,-151.0,0.000333,7]
[388048131,1758991846991,-151.0,0.000333,7]
[388048132,1758991847001,-987.64057,0.000333,7]
[388048133,1758991847010,-987.64057,0.000333,7]
[388048134,1758991847019,-987.64057,0.000333,7]
[388048135,1758991847029,-987.64057,0.000333,7]
[388048136,1758991847038,-151.0,0.000333,7]
[388048137,1758991847048,-182.818792,0.000333,7]
[388048138,1758991847057,-176.771865,0.000333,7]
[388048139,1758991847067,-176.771865,0.000333,7]
[388048140,1758991847076,-176.771865,0.000333,7]
[388048141,1758991847085,-176.771865,0.000333,7]
[388048142,1758991847095,-151.0,0.000333,7]
[388048143,1758991847104,-151.0,0.000333,7]
[388048144,1758991847114,-151.0,0.000333,7]
[388048145,1758991847123,-151.0,0.000333,7]
[388048146,1758991847132,-151.0,0.000333,7]
[388048147,1758991847142,-151.0,0.000333,7]
[388048148,1758991847151,-151.0,0.000333,7]
[388048149,1758991847160,-151.0,0.000333,7]
[388048150,1758991847170,-363.55866,0.000333,7]
[388048151,1758991847179,-363.55866,0.000333,7]
[388048152,1758991847188,-151.0,0.000333,7]
[388048153,1758991847197,-363.55866,0.000333,7]
[388048155,1758991847206,-151.0,0.000333,7]
[388048156,1758991847216,-363.55866,0.000333,7]
[388048158,1758991847226,-151.0,0.000333,7]
[388048159,1758991847235,-151.0,0.000333,7]
[388048160,1758991847245,-334.60601,0.000333,7]
[388048161,1758991847254,-334.60601,0.000333,7]
[388048163,1758991847264,-334.60601,0.000333,7]
[388048164,1758991847274,-670.083183,0.000333,7]
[388048165,1758991847284,-334.60601,0.000333,7]
[388048166,1758991847295,-670.083183,0.000333,7]
[388048167,1758991847305,-670.083183,0.000333,7]
[388048168,1758991847315,-670.083183,0.000333,7]
[388048169,1758991847326,-324.0,0.00033318,2]
[388048170,1758991847335,-151.0,0.000334,13]
[388048171,1758991847346,-1140.6840765,0.0003342,2]
[388048172,1758991847356,-27601.71650613,0.0003343,2]
[388048173,1758991847365,-151.0,0.0003343,7]
[388048174,1758991847375,-151.0,0.0003343,7]
[388048175,1758991847384,-151.0,0.0003343,7]
[388048176,1758991847394,-151.0,0.0003343,7]
[388048177,1758991847403,-151.0,0.0003343,7]
[388048178,1758991847413,-151.0,0.0003343,7]
[388048179,1758991847423,-207.647888,0.0003343,7]
[388048180,1758991847432,-151.0,0.0003343,7]
[388048181,1758991847441,-169.830497,0.0003343,7]
[388048182,1758991847450,-169.830497,0.0003343,7]
[388048183,1758991847460,-169.830497,0.0003343,7]
[388048184,1758991847590,-169.830497,0.0003343,7]
[388048185,1758991847600,-151.0,0.0003343,7]
[388048186,1758991847609,-1140.6840765,0.00033449,2]
[388048187,1758991847618,-153.97560866,0.00033458,5]
[388048188,1758991847627,-151.0,0.00033458,5]
[388048189,1758991847637,-151.0,0.00033458,5]
[388048190,1758991847646,-198.0,0.00033458,5]
[388048191,1758991847655,-500.0,0.00033458,5]
[388048192,1758991847664,-151.0,0.00033458,5]
[388048193,1758991847672,-500.0,0.00033458,5]
[388048194,1758991847684,-1011.0,0.00033458,5]
[388048195,1758991847693,-151.0,0.00033458,5]
[388048196,1758991847702,-151.0,0.00033459,7]
[388048197,1758991847712,-151.0,0.00033459,7]
[388048198,1758991847721,-203.704157,0.00033459,7]
[388048199,1758991847730,-231.954709,0.00033459,7]
[388048200,1758991847740,-231.954709,0.00033459,7]
[388048201,1758991847748,-231.954709,0.00033459,7]
[388048202,1758991847758,-151.0,0.00033459,7]
[388048203,1758991847768,-231.954709,0.00033459,7]
[388048204,1758991847777,-151.0,0.00033459,7]
[388048205,1758991847785,-151.0,0.00033459,7]